Cogmind - Beta 9.6 @@@ ROGUE MODE // 2020.08.12 @ 15:11:45 Player: Plexion Result: Self-destructed Performance ------------- Evolutions (5) 2500 Regions Visited (19) 3800 Robots Destroyed (97) 485 Value Destroyed (6080) 6080 Prototype IDs (27) 540 Alien Tech Used (0) 0 Bonus (6850) 6850 TOTAL SCORE: 20255 Bonus ------- High Alert Combat Kills 245 Follower Combat Kills 3389 Entered Garrisons 800 Used RIF Installer 2000 Aligned with FarCom 300 Built Enhanced Grunts 300 Met R17 at Cetus 500 Friendly Fire -684 Cogmind --------- Core Integrity 1000/1000 Matter 230/300 Energy 350/350 System Corruption 0% Temperature Cool (0) Movement Treading (180) Ox1 Location -5/Factory Parts ------- > --- POWER (1) -------- Quantum Reactor > --- PROPULSION (3) --- Light Treads Centrium Heavy Treads > --- UTILITY (11) ----- Humpback Centrium Medium Armor Plating Centrium Medium Armor Plating Relay Coupler [NC] (11) Relay Coupler [Swarmer] (36) Relay Coupler [Grunt] (31) Relay Coupler [Brawler] (20) Relay Coupler [Duelist] (20) > --- WEAPON (2) ------- Improved KE Penetrator Phasing Sabre > --- INVENTORY (24) --- Centrium Heavy Treads Centrium Heavy Treads Centrium Heavy Treads Centrium Medium Armor Plating Centrium Medium Armor Plating Relay Coupler [NC] (26) Relay Coupler [NC] (31) Relay Coupler [NC] (33) Relay Coupler [Swarmer] (47) Relay Coupler [Swarmer] (47) Relay Coupler [Grunt] (30) Relay Coupler [Grunt] (27) Relay Coupler [Sentry] (21) Relay Coupler [Sentry] (23) Relay Coupler [Specialist] (25) Improved KE Penetrator Improved KE Penetrator Improved Proton Missile Launcher Remote Datajack Field Lobotomy Kit Peak State ------------ > --- POWER ------------ Quantum Reactor > --- PROPULSION ------- Centrium Heavy Treads Compact Wheel > --- UTILITY ---------- Humpback Centrium Medium Armor Plating Centrium Medium Armor Plating Relay Coupler [NC] Relay Coupler [Swarmer] Relay Coupler [Grunt] Relay Coupler [Sentry] Relay Coupler [Hunter] > --- WEAPON ----------- Improved KE Penetrator Field Lobotomy Kit > --- INVENTORY -------- Improved Deuterium Engine Centrium Heavy Treads Centrium Heavy Treads Centrium Heavy Treads Centrium Medium Armor Plating Centrium Medium Armor Plating Relay Coupler [NC] Relay Coupler [NC] Relay Coupler [NC] Relay Coupler [NC] Relay Coupler [Swarmer] Relay Coupler [Swarmer] Relay Coupler [Swarmer] Relay Coupler [Brawler] Gatling Laser Improved KE Penetrator Improved KE Penetrator Improved KE Penetrator Improved Proton Missile Launcher Remote Datajack Phasing Sabre [Rating: 95] Favorites ----------- Power Light Angular Momentum Engine Engine Light Angular Momentum Engine Reactor Quantum Reactor Propulsion Armored Wheel Treads Light Treads Leg Aluminum Leg Wheel Armored Wheel Hover Unit Cooled Aerolev Unit Utility Humpback Device Heat Sink Storage Humpback Processor Targeting Computer Hackware Relay Coupler [Grunt] Protection Improved Light Armor Plating Weapon Gauss Rifle Energy Gun EM Pulse Gun Ballistic Gun Gauss Rifle Launcher Grenade Launcher Special Weapon Remote Datajack Slashing Weapon Phasing Sabre Piercing Weapon Spear Build | -11 -10 -10 -10 -9 -8 -7 -7 -7 -7 -6 -6 -6 -6 -6 -6 -6 -6 -6 -5 ------- Run | Scr Mat Min Exi Min Mat Fac Gar Fac Gar Fac Was Fac Gar Ext Cet Arc Hub Gar Fac Slots Evolved 10 | . . . . . 4 2 . . . 2 . . . . . . . . 2 Power . | . . . . . . . . . . . . . . . . . . . . Propulsion 1 | . . . . . 1 . . . . . . . . . . . . . . Utility 9 | . . . . . 3 2 . . . 2 . . . . . . . . 2 Weapon . | . . . . . . . . . . . . . . . . . . . . Parts Attached 186 | 6 1 2 3 1 23 . 16 5 28 2 1 4 28 28 13 3 2 15 5 Power 8 | 1 . . . . 2 . . 1 1 . . . 2 . 1 . . . . Engine 7 | 1 . . . . 2 . . 1 1 . . . 2 . . . . . . Core . | . . . . . . . . . . . . . . . . . . . . Reactor 1 | . . . . . . . . . . . . . . . 1 . . . . Propulsion 31 | 2 . . . 1 7 . 4 . 8 . 1 . 2 3 2 . . 1 . Treads 6 | . . . . . . . 3 . 1 . . . . . 1 . . 1 . Leg 4 | . . . . . 1 . 1 . 2 . . . . . . . . . . Wheel 20 | 2 . . . 1 6 . . . 5 . 1 . 2 2 1 . . . . Hover 1 | . . . . . . . . . . . . . . 1 . . . . . Flight . | . . . . . . . . . . . . . . . . . . . . Utility 61 | 1 1 . 1 . 5 . 9 3 7 2 . 2 10 9 4 . . 6 1 Device 1 | . . . . . 1 . . . . . . . . . . . . . . Storage 6 | 1 1 . 1 . . . 1 . 1 . . . 1 . . . . . . Processor 4 | . . . . . 1 . 3 . . . . . . . . . . . . Hackware 29 | . . . . . . . 3 2 5 1 . 1 5 7 . . . 4 1 Protection 21 | . . . . . 3 . 2 1 1 1 . 1 4 2 4 . . 2 . Artifact . | . . . . . . . . . . . . . . . . . . . . Weapon 86 | 2 . 2 2 . 9 . 3 1 12 . . 2 14 16 6 3 2 8 4 Energy Gun 6 | 2 . . . . 3 . . . . . . . . 1 . . . . . Energy Cannon . | . . . . . . . . . . . . . . . . . . . . Ballistic Gun 33 | . . 1 1 . 2 . 1 1 5 . . 1 7 3 5 1 1 4 . Ballistic Cannon . | . . . . . . . . . . . . . . . . . . . . Launcher 8 | . . 1 1 . 2 . 1 . 1 . . . 1 . . . . . 1 Special Weapon 26 | . . . . . 2 . 1 . 3 . . . 5 6 1 2 1 4 1 Impact Weapon . | . . . . . . . . . . . . . . . . . . . . Slashing Weapon 7 | . . . . . . . . . . . . . . 5 . . . . 2 Piercing Weapon 6 | . . . . . . . . . 3 . . 1 1 1 . . . . . Special Melee Weapon . | . . . . . . . . . . . . . . . . . . . . Unidentified Prototypes 1 | . . . . . . . . . . . . . . 1 . . . . . Parts Lost 38 | . 1 . . . 16 . 3 1 3 . 1 1 9 1 2 . . . . Power 5 | . . . . . 2 . . 1 1 . . . 1 . . . . . . Propulsion 16 | . . . . . 7 . 2 . 1 . 1 . 2 1 2 . . . . Utility 10 | . . . . . 3 . . . 1 . . 1 5 . . . . . . Weapon 7 | . 1 . . . 4 . 1 . . . . . 1 . . . . . . Highest Loss Streak 9 | . 1 . . . 9 . 1 1 2 . 1 1 5 1 1 . . . . Average Slot Usage (%) 87 | . 93 100 83 85 62 61 87 90 90 92 87 93 89 89 86 81 80 85 76 Engine 6 | . 14 14 14 14 8 7 7 6 7 6 6 6 6 6 3 . . . . Treads 5 | . . . . . . . 15 15 9 . . . . . 5 6 6 11 11 Leg 1 | . . . . . 1 7 4 7 4 . . . . . . . . . . Wheel 13 | . 28 28 28 28 22 7 . . 8 20 17 20 20 18 7 6 6 1 . Storage 8 | . 22 28 21 14 9 7 7 7 7 6 6 6 5 6 6 6 6 6 5 Hackware 20 | . . . . . . . 2 11 26 39 40 40 31 32 33 27 26 28 29 Protection 11 | . . . . . 2 15 27 26 9 5 6 6 11 10 13 13 13 16 11 Energy Gun 1 | . 28 7 . . 6 . . . . . . . . . . . . . . Ballistic Gun 7 | . . 14 8 14 5 15 12 7 6 6 3 . 7 5 12 11 13 11 8 Special Weapon 2 | . . . . . 3 . 2 5 4 6 6 6 3 3 . 1 . 1 . Naked Turns . | . . . . . . . . . . . . . . . . . . . . Heaviest Build 177 | 13 21 23 91 91 99 99 105 108 177 99 99 99 108 106 126 128 126 137 126 Greatest Support 100 | 32 32 32 32 32 36 16 60 40 40 36 36 36 36 40 80 80 80 100 100 Greatest Overweight (x) 14 | . . . 2 3 6 6 9 2 14 2 3 2 4 4 3 1 1 1 1 Average Overweight (x) 1 | . . . . 2 2 6 2 2 2 2 2 2 2 2 1 1 1 1 1 Largest Inventory Capacity 44 | 6 10 10 24 24 24 24 24 24 44 24 24 24 24 24 24 24 24 24 24 Average Capacity 22 | 5 8 10 15 24 24 24 23 24 26 24 24 24 23 24 24 24 24 24 24 Most Carried 28 | 6 7 7 18 17 17 14 24 24 28 24 23 23 24 24 24 24 24 24 24 Average Carried 19 | 3 6 6 10 15 12 14 18 23 24 22 22 21 18 20 23 24 24 23 23 Final Capacity 24 | 6 10 10 24 24 24 24 24 24 24 24 24 24 24 24 24 24 24 24 24 Final Carried 24 | 6 7 7 15 17 14 14 24 24 24 23 22 22 24 20 24 24 24 24 23 Class Distribution -------------------- 67% | Bothacker-Mutant 10% | Hauler-Mutant 10% | Mutant 8% | Scavenger-Mutant Dominant Class ---------------- Mutant | -10/Materials Mutant | -10/Mines Mutant | -10/Exiles Hauler-Mutant | -9/Mines Hauler-Mutant | -8/Materials Hauler-Mutant | -7/Factory Scavenger-Mutant | -7/Garrison Bothacker-Mutant | -7/Factory Bothacker-Mutant | -7/Garrison Bothacker-Mutant | -6/Factory Bothacker-Mutant | -6/Waste Bothacker-Mutant | -6/Factory Bothacker-Mutant | -6/Garrison Bothacker-Mutant | -6/Extension Bothacker-Mutant | -6/Cetus Bothacker-Mutant | -6/Archives Bothacker-Mutant | -6/Hub_04(d) Bothacker-Mutant | -6/Garrison Botlord-Mutant | -5/Factory Resources | -11 -10 -10 -10 -9 -8 -7 -7 -7 -7 -6 -6 -6 -6 -6 -6 -6 -6 -6 -5 ----------- Run | Scr Mat Min Exi Min Mat Fac Gar Fac Gar Fac Was Fac Gar Ext Cet Arc Hub Gar Fac Matter Collected 4760 | 200 70 19 139 55 151 . 939 168 925 . . 94 759 627 217 51 41 305 . Remotely . | . . . . . . . . . . . . . . . . . . . . Salvage Created 4017 | 189 96 50 . 125 532 . 681 93 1149 . . . 497 132 143 87 . 217 26 Parts 183 | 12 5 6 . 12 25 . 33 5 40 . . . 15 11 7 2 . 8 2 Haulers Intercepted 1 | . 1 . . . . . . . . . . . . . . . . . . Recyclers Shooed 6 | 1 . . . 1 3 . . . . . . . . 1 . . . . . Parts Field Recycled . | . . . . . . . . . . . . . . . . . . . . Retrieved Matter . | . . . . . . . . . . . . . . . . . . . . Parts Self-Destructed . | . . . . . . . . . . . . . . . . . . . . Prevented . | . . . . . . . . . . . . . . . . . . . . Kills | -11 -10 -10 -10 -9 -8 -7 -7 -7 -7 -6 -6 -6 -6 -6 -6 -6 -6 -6 -5 ------- Run | Scr Mat Min Exi Min Mat Fac Gar Fac Gar Fac Was Fac Gar Ext Cet Arc Hub Gar Fac Combat Hostiles Destroyed 73 | . 1 5 . 4 12 . 12 2 18 . . . 11 1 2 1 . 4 . Melee 3 | . . . . . . . . . 2 . . . . 1 . . . . . Guns 49 | . . 1 . . 2 . 12 2 14 . . . 11 . 2 1 . 4 . AOE 20 | . . 4 . 4 10 . . . 2 . . . . . . . . . . Classes Destroyed 13 | 2 2 2 . . 5 . 2 . . . . . . . . . . . . Worker 8 | . . 1 . 1 5 . . 1 . . . . . . . . . . . Builder 4 | . . . . . 2 . . . . . . . . 1 . . . . 1 Tunneler 5 | 4 . . . 1 . . . . . . . . . . . . . . . Hauler 1 | . 1 . . . . . . . . . . . . . . . . . . Recycler 3 | 1 . . . 1 1 . . . . . . . . . . . . . . Operator 1 | . . . . . 1 . . . . . . . . . . . . . . Swarmer 17 | . . 3 . 4 . . . . 6 . . . 4 . . . . . . Grunt 34 | . 1 2 . . 6 . 7 1 8 . . . 7 . . . . 2 . Duelist 2 | . . . . . 1 . . . 1 . . . . . . . . . . Sentry 10 | . . . . . 3 . 2 . 1 . . . 1 . . 1 . 2 . Specialist 1 | . . . . . . . 1 . . . . . . . . . . . . Hunter 4 | . . . . . 2 . . . 1 . . . . 1 . . . . . Programmer 4 | . . . . . . . 2 1 1 . . . . . . . . . . Cetus Guard 2 | . . . . . . . . . . . . . . . 2 . . . . Thug 1 | . . . . . . . . . . . . . . 1 . . . . . Best Kill Streak 9 | 3 2 5 . 4 9 . 3 2 3 . . . 2 1 2 1 . 2 1 Combat Bots Only 5 | . 1 4 . 4 5 . 3 1 3 . . . 2 1 2 1 . 2 . Max Kills in Single Turn 3 | 1 1 3 . 3 3 . 1 2 2 . . . 1 1 1 1 . 1 1 Gunslinging . | . . . . . . . . . . . . . . . . . . . . Exploded 3 | . . 2 . 3 1 . . . 2 . . . . . . . . . . Melee 1 | . . . . . . . . . 1 . . . . 1 . . . . . Uniques/NPCs Destroyed . | . . . . . . . . . . . . . . . . . . . . Combat | -11 -10 -10 -10 -9 -8 -7 -7 -7 -7 -6 -6 -6 -6 -6 -6 -6 -6 -6 -5 -------- Run | Scr Mat Min Exi Min Mat Fac Gar Fac Gar Fac Was Fac Gar Ext Cet Arc Hub Gar Fac Damage Taken 6978 | . 165 19 30 21 1631 . 990 497 1109 . 45 159 1008 544 238 45 . 393 84 Core 1108 | . 55 . . 9 370 . 126 103 152 . . 35 112 85 . 23 . 38 . Absorbed by Shields 430 | . . . . . . . 18 . . . . . 288 . 124 . . . . Core Remaining (%) 63 | 100 . . . 74 32 . . . 45 . . . . . . . . 65 . Volleys Fired 448 | 12 9 8 . 7 42 . 55 19 92 . 6 9 71 73 10 3 3 25 4 Largest 2 | 2 2 2 . 2 2 . 2 2 2 . 1 1 2 2 2 2 2 2 1 Hottest 140 | 80 80 63 . 53 140 . 56 56 56 . 30 30 58 108 68 70 70 70 30 Shots Fired 611 | 24 18 10 1 7 56 . 96 24 119 . 6 9 92 81 18 5 5 36 4 Gun 400 | 24 18 6 . 5 27 . 90 13 78 . . . 70 20 16 4 4 25 . Cannon . | . . . . . . . . . . . . . . . . . . . . Launcher 30 | . . 4 1 2 19 . . . 3 . . . 1 . . . . . . Special 181 | . . . . . 10 . 6 11 38 . 6 9 21 61 2 1 1 11 4 Kinetic 334 | . . 5 . 5 11 . 90 13 78 . . . 70 13 16 4 4 25 . Thermal 18 | . . . . . 11 . . . . . . . . 7 . . . . . Explosive 30 | . . 4 1 2 19 . . . 3 . . . 1 . . . . . . Electromagnetic 58 | 24 18 1 . . 15 . . . . . . . . . . . . . . Robot Hit Streak 30 | 5 4 3 . 3 11 . 30 8 16 . 4 5 6 13 14 3 6 6 8 Robot Miss Streak 11 | 2 3 2 . 1 3 . 4 5 3 . 1 1 9 11 1 1 1 2 . Penetration Max 1 | . . . . . . . . 1 1 . . . 1 1 1 1 1 1 . Secondary Targets 2 | . . . . . . . . . . . . . 2 . . . . . . Max Gunslinging Chain 1 | . . . . . . . . . . . . . 1 . . . . . . Shots Hit Robots 423 | 15 9 4 . 6 28 . 61 15 108 . 5 7 48 68 14 4 4 22 5 Core Hits 202 | 5 2 11 . 8 49 . 26 6 49 . . . 22 6 6 3 . 9 . Critical Hits 23 | . . . . . . . 3 1 5 . . . 1 3 6 . . 4 . Critical Kills 7 | . . . . . . . 2 1 2 . . . . . 2 . . . . Critical Parts Destroyed 14 | . . . . . . . 1 . 3 . . . 1 2 4 . . 3 . Melee Attacks 66 | . . . . . . . . . 27 . . 12 3 20 . . . . 4 Impact . | . . . . . . . . . . . . . . . . . . . . Slashing 23 | . . . . . . . . . . . . . . 19 . . . . 4 Piercing 43 | . . . . . . . . . 27 . . 12 3 1 . . . . . Sneak Attacks 4 | . . . . . . . . . . . . . . 3 . . . . 1 Combat Hostiles . | . . . . . . . . . . . . . . . . . . . . Follow-up Attacks . | . . . . . . . . . . . . . . . . . . . . Damage Inflicted 9970 | 208 139 376 . 279 1772 . 1343 239 3075 . . . 957 639 215 134 101 388 105 Guns 5683 | 186 139 66 . 86 254 . 1343 239 1417 . . . 893 222 215 134 101 388 . Cannons . | . . . . . . . . . . . . . . . . . . . . Explosions 2351 | 22 . 310 . 193 1453 . . . 334 . . . 39 . . . . . . Melee 1871 | . . . . . . . . . 1324 . . . 25 417 . . . . 105 Ramming 17 | . . . . . 17 . . . . . . . . . . . . . . Kinetic 5136 | . . 54 . 86 136 . 1343 239 1417 . . . 893 130 215 134 101 388 . Thermal 162 | 22 . . . . 48 . . . . . . . . 92 . . . . . Explosive 2329 | . . 310 . 193 1453 . . . 334 . . . 39 . . . . . . Electromagnetic 455 | 186 139 12 . . 118 . . . . . . . . . . . . . . Impact . | . . . . . . . . . . . . . . . . . . . . Slashing 449 | . . . . . . . . . . . . . . 344 . . . . 105 Piercing 1422 | . . . . . . . . . 1324 . . . 25 73 . . . . . Highest Corruption 18 | . 5 5 5 5 18 . 1 7 7 . . 2 2 2 2 2 2 2 . Average Corruption 3 | . 4 5 5 5 17 . 1 5 7 . . 1 2 2 2 2 2 2 . Corruption Purged . | . . . . . . . . . . . . . . . . . . . . Effects 181 | . 1 14 8 6 33 . 7 14 52 . . 3 12 17 6 . . 8 . Message Errors 46 | . . 3 2 1 8 . 3 3 8 . . 2 4 8 2 . . 2 . Matter Fused 22 | . 1 4 1 1 3 . . 3 9 . . . . . . . . . . Heat Flow Errors 27 | . . 3 2 1 5 . . 1 7 . . 1 1 1 3 . . 2 . Energy Discharges 23 | . . 1 1 . 2 . 1 3 5 . . . 2 4 1 . . 3 . Parts Rejected 1 | . . . . . . . . 1 . . . . . . . . . . . Data Loss (minor) 22 | . . 1 1 . 3 . 2 . 11 . . . 2 1 . . . 1 . Data Loss (major) 4 | . . 1 . . . . . . 3 . . . . . . . . . . Misfires 6 | . . 1 1 . 2 . . 1 1 . . . . . . . . . . Misdirections 1 | . . . . . 1 . . . . . . . . . . . . . . Targeting Errors 26 | . . . . 2 7 . 1 2 8 . . . 3 3 . . . . . Weapon Failures 3 | . . . . 1 2 . . . . . . . . . . . . . . Overload Shots . | . . . . . . . . . . . . . . . . . . . . Overflow Damage 186 | . . 6 . . 41 . . . 54 . . . . . . . . . 85 Projectiles . | . . . . . . . . . . . . . . . . . . . . Explosions 52 | . . 6 . . 41 . . . 5 . . . . . . . . . . Melee 134 | . . . . . . . . . 49 . . . . . . . . . 85 Knockbacks . | . . . . . . . . . . . . . . . . . . . . Impact . | . . . . . . . . . . . . . . . . . . . . Kinetic . | . . . . . . . . . . . . . . . . . . . . Secondary . | . . . . . . . . . . . . . . . . . . . . Self-Inflicted Damage 297 | . . . 31 8 244 . . . 14 . . . . . . . . . . Shots 12 | . . . 1 1 9 . . . 1 . . . . . . . . . . Rammed 1 | . . . . . 1 . . . . . . . . . . . . . . Targets Rammed 1 | . . . . . 1 . . . . . . . . . . . . . . Kicked . | . . . . . . . . . . . . . . . . . . . . Crushed . | . . . . . . . . . . . . . . . . . . . . Highest Temperature 276 | 90 162 276 181 250 206 . 12 173 233 . 4 261 192 76 162 9 7 220 8 Average Temperature 52 | 36 96 111 79 140 54 . 4 46 60 . 2 77 33 10 70 8 7 50 5 Received Heat Transfer 1075 | . 54 . . . 162 . 330 27 108 . . . 151 123 24 9 . 78 9 Siege Activations . | . . . . . . . . . . . . . . . . . . . . Robots Corrupted 2 | 1 1 . . . . . . . . . . . . . . . . . . Combat Hostiles 1 | . 1 . . . . . . . . . . . . . . . . . . Parts Fried 5 | 2 3 . . . . . . . . . . . . . . . . . . Impact Corruptions . | . . . . . . . . . . . . . . . . . . . . Robots Melted . | . . . . . . . . . . . . . . . . . . . . Combat Hostiles . | . . . . . . . . . . . . . . . . . . . . Parts Melted . | . . . . . . . . . . . . . . . . . . . . Heat Transferred 350 | 50 . . . . 100 . . . . . . . . 200 . . . . . Parts Sabotaged . | . . . . . . . . . . . . . . . . . . . . Parts Stolen . | . . . . . . . . . . . . . . . . . . . . Parts Stripped . | . . . . . . . . . . . . . . . . . . . . Power Chain Reactions 1 | 1 . . . . . . . . . . . . . . . . . . . Missiles Intercepted . | . . . . . . . . . . . . . . . . . . . . Alert | -11 -10 -10 -10 -9 -8 -7 -7 -7 -7 -6 -6 -6 -6 -6 -6 -6 -6 -6 -5 ------- Run | Scr Mat Min Exi Min Mat Fac Gar Fac Gar Fac Was Fac Gar Ext Cet Arc Hub Gar Fac Peak Influence 1150 | 25 73 149 . 120 338 85 654 526 758 409 703 532 573 432 427 335 348 1150 664 Average Influence 348 | 9 34 36 . 108 144 85 445 355 409 399 333 421 338 226 278 290 206 740 607 Maximum Alert Level 4 | . . . . . 1 . 2 2 3 2 3 2 2 2 2 1 1 4 2 Low Security (%) 31 | 100 100 100 . 100 88 100 11 9 26 . 48 . 8 34 34 16 31 6 . Level 1 31 | . . . . . 11 . 26 45 23 82 10 51 58 58 25 83 68 2 . Level 2 30 | . . . . . . . 62 45 41 17 33 48 33 6 39 . . 29 100 Level 3 6 | . . . . . . . . . 9 . 7 . . . . . . 53 . Level 4 . | . . . . . . . . . . . . . . . . . . 8 . Level 5 . | . . . . . . . . . . . . . . . . . . . . High Security . | . . . . . . . . . . . . . . . . . . . . Max Security . | . . . . . . . . . . . . . . . . . . . . Squads Dispatched 16 | . 1 . . . 3 . . 5 . . . 2 . 2 . . 2 . 1 Investigation 4 | . . . . . 1 . . . . . . 1 . 1 . . 1 . . Extermination 1 | . . . . . . . . 1 . . . . . . . . . . . Reinforcement 7 | . 1 . . . 2 . . 1 . . . 1 . 1 . . 1 . . Assault 1 | . . . . . . . . . . . . . . . . . . . 1 Garrison 3 | . . . . . . . . 3 . . . . . . . . . . . Intercept . | . . . . . . . . . . . . . . . . . . . . Construction Impeded 1 | . . . . . 1 . . . . . . . . . . . . . . Haulers Reinforced . | . . . . . . . . . . . . . . . . . . . . Stealth | -11 -10 -10 -10 -9 -8 -7 -7 -7 -7 -6 -6 -6 -6 -6 -6 -6 -6 -6 -5 --------- Run | Scr Mat Min Exi Min Mat Fac Gar Fac Gar Fac Was Fac Gar Ext Cet Arc Hub Gar Fac Distress Signals 9 | . 1 . . . 3 . . . . . . 1 . 2 2 . . . . Communications Jammed . | . . . . . . . . . . . . . . . . . . . . Distress Signals . | . . . . . . . . . . . . . . . . . . . . Times Spotted 249 | . 11 5 . 1 19 . 22 11 35 . 5 10 35 29 18 7 5 26 10 Peak Tracking Total 8 | . 8 5 . 1 6 . 4 4 5 . 5 6 7 5 5 2 5 7 6 Tactical Retreats 17 | . 1 1 . . . . 4 . 3 . . . 5 3 . . . . . Traps | -11 -10 -10 -10 -9 -8 -7 -7 -7 -7 -6 -6 -6 -6 -6 -6 -6 -6 -6 -5 ------- Run | Scr Mat Min Exi Min Mat Fac Gar Fac Gar Fac Was Fac Gar Ext Cet Arc Hub Gar Fac Traps Triggered 36 | . 4 . . . 1 . 6 1 7 1 . 2 3 3 . . 1 7 . Indirectly . | . . . . . . . . . . . . . . . . . . . . Trap Hack Attempts . | . . . . . . . . . . . . . . . . . . . . Triggered . | . . . . . . . . . . . . . . . . . . . . Disarmed . | . . . . . . . . . . . . . . . . . . . . Reprogrammed . | . . . . . . . . . . . . . . . . . . . . Reused . | . . . . . . . . . . . . . . . . . . . . Traps Extracted . | . . . . . . . . . . . . . . . . . . . . Installed . | . . . . . . . . . . . . . . . . . . . . Triggered . | . . . . . . . . . . . . . . . . . . . . Machines | -11 -10 -10 -10 -9 -8 -7 -7 -7 -7 -6 -6 -6 -6 -6 -6 -6 -6 -6 -5 ---------- Run | Scr Mat Min Exi Min Mat Fac Gar Fac Gar Fac Was Fac Gar Ext Cet Arc Hub Gar Fac Machines Disabled 23 | . . . . . 3 . 3 1 3 . . . 4 1 2 . 2 4 . Max in Single Turn 1 | . . . . . 1 . 1 1 1 . . . 1 1 . . 1 1 . Garrison Relay 13 | . . . . . . . 3 . 3 . . . 3 . . . . 4 . Machines Sabotaged . | . . . . . . . . . . . . . . . . . . . . Garrisons Compromised . | . . . . . . . . . . . . . . . . . . . . Overloaded Fab Kills . | . . . . . . . . . . . . . . . . . . . . Fab Network Shutdowns . | . . . . . . . . . . . . . . . . . . . . Hacking | -11 -10 -10 -10 -9 -8 -7 -7 -7 -7 -6 -6 -6 -6 -6 -6 -6 -6 -6 -5 --------- Run | Scr Mat Min Exi Min Mat Fac Gar Fac Gar Fac Was Fac Gar Ext Cet Arc Hub Gar Fac Machines Accessed 19 | . 2 . 2 . . 1 . 1 . 2 . 3 . 5 . . 2 . 1 Terminals 10 | . 2 . . . . . . . . 1 . 1 . 5 . . 1 . . Fabricators 1 | . . . . . . . . . . . . . . . . . . . 1 Repair Stations . | . . . . . . . . . . . . . . . . . . . . Recycling Units . | . . . . . . . . . . . . . . . . . . . . Scanalyzers 2 | . . . . . . . . . . 1 . 1 . . . . . . . Garrison Access 4 | . . . . . . 1 . 1 . . . 1 . . . . 1 . . Total Hacks 42 | . 5 . 2 . . 1 . 1 . 4 . 11 . 11 . . 4 . 3 Successful 17 | . 1 . 2 . . 1 . 1 . 1 . 5 . 2 . . 3 . 1 Failed 25 | . 4 . . . . . . . . 3 . 6 . 9 . . 1 . 2 Catastrophic 6 | . 1 . . . . . . . . 1 . 1 . 2 . . 1 . . Database Lockouts . | . . . . . . . . . . . . . . . . . . . . Manual 21 | . 5 . 1 . . . . . . 1 . 7 . 1 1 . 3 . 2 Terminals 27 | . 5 . . . . . . . . 1 . 7 . 11 . . 3 . . Fabricators 3 | . . . . . . . . . . . . . . . . . . . 3 Repair Stations . | . . . . . . . . . . . . . . . . . . . . Recycling Units . | . . . . . . . . . . . . . . . . . . . . Scanalyzers 6 | . . . . . . . . . . 3 . 3 . . . . . . . Garrison Access 4 | . . . . . . 1 . 1 . . . 1 . . . . 1 . . Terminal Hacks 7 | . 1 . 2 . . . . . . . . 1 . 2 . . 1 . . Record 1 | . . . 1 . . . . . . . . . . . . . . . . Open Door 2 | . . . . . . . . . . . . . . 2 . . . . . Scanalyzer Index 1 | . . . . . . . . . . . . 1 . . . . . . . Unreport Threat 1 | . . . . . . . . . . . . . . . . . 1 . . Recall Reinforcements 1 | . 1 . . . . . . . . . . . . . . . . . . EX-Prototype ID Bank 1 | . . . 1 . . . . . . . . . . . . . . . . Fabricator Hacks . | . . . . . . . . . . . . . . . . . . . . Repair Station Hacks . | . . . . . . . . . . . . . . . . . . . . Recycling Unit Hacks . | . . . . . . . . . . . . . . . . . . . . Scanalyzer 3 | . . . . . . . . . . 1 . 2 . . . . . . . Insert Component 2 | . . . . . . . . . . 1 . 1 . . . . . . . Analyze 1 | . . . . . . . . . . . . 1 . . . . . . . Garrison Access Hacks 4 | . . . . . . 1 . 1 . . . 1 . . . . 1 . . Unlock Access 4 | . . . . . . 1 . 1 . . . 1 . . . . 1 . . Unauthorized Hacks 3 | . . . . . . . . . . . . 1 . . . . 1 . 1 Terminals 2 | . . . . . . . . . . . . 1 . . . . 1 . . Botnet 2 | . . . . . . . . . . . . 1 . . . . 1 . . Fabricators 1 | . . . . . . . . . . . . . . . . . . . 1 Report 1 | . . . . . . . . . . . . . . . . . . . 1 Repair Stations . | . . . . . . . . . . . . . . . . . . . . Recycling Units . | . . . . . . . . . . . . . . . . . . . . Scanalyzers . | . . . . . . . . . . . . . . . . . . . . Garrison Access . | . . . . . . . . . . . . . . . . . . . . Data Cores Recovered . | . . . . . . . . . . . . . . . . . . . . Used . | . . . . . . . . . . . . . . . . . . . . Hacking Detections 13 | . 2 . . . . . . 1 . 2 . 2 . 3 . . 2 . 1 Full Trace Events 2 | . . . . . . . . . . . . 1 . 1 . . . . . Feedback Events . | . . . . . . . . . . . . . . . . . . . . Feedback Blocked . | . . . . . . . . . . . . . . . . . . . . Robot Schematics Acquired . | . . . . . . . . . . . . . . . . . . . . Robots Built . | . . . . . . . . . . . . . . . . . . . . Matter . | . . . . . . . . . . . . . . . . . . . . Time . | . . . . . . . . . . . . . . . . . . . . Total Robot Build Rating . | . . . . . . . . . . . . . . . . . . . . Part Schematics Acquired 1 | . . . . . . . . . . . . 1 . . . . . . . Parts Built . | . . . . . . . . . . . . . . . . . . . . Matter . | . . . . . . . . . . . . . . . . . . . . Time . | . . . . . . . . . . . . . . . . . . . . Total Part Build Rating . | . . . . . . . . . . . . . . . . . . . . Parts Repaired . | . . . . . . . . . . . . . . . . . . . . Time . | . . . . . . . . . . . . . . . . . . . . Parts Recycled . | . . . . . . . . . . . . . . . . . . . . Recycled Matter . | . . . . . . . . . . . . . . . . . . . . Retrieved Matter . | . . . . . . . . . . . . . . . . . . . . Retrieved Components . | . . . . . . . . . . . . . . . . . . . . Parts Scanalyzed 1 | . . . . . . . . . . 1 . . . . . . . . . Part Schematics Acquired 1 | . . . . . . . . . . . . 1 . . . . . . . Parts Damaged . | . . . . . . . . . . . . . . . . . . . . Bothacking | -11 -10 -10 -10 -9 -8 -7 -7 -7 -7 -6 -6 -6 -6 -6 -6 -6 -6 -6 -5 ------------ Run | Scr Mat Min Exi Min Mat Fac Gar Fac Gar Fac Was Fac Gar Ext Cet Arc Hub Gar Fac Used RIF Installer 4 | . . . . . . . 1 . 1 . . . 1 . . . . 1 . Robot Detection 1 | . . . . . . . . . 1 . . . . . . . . . . Patrol Navigation 1 | . . . . . . . . . . . . . 1 . . . . . . Autoassimilate 1 | . . . . . . . . . . . . . . . . . . 1 . Robots Hacked 61 | . . . . . . . 4 4 10 . 5 4 10 10 1 1 1 7 4 Non-combat 3 | . . . . . . . . 1 . . . . 1 1 . . . . . Combat 58 | . . . . . . . 4 3 10 . 5 4 9 9 1 1 1 7 4 Autoassimilated 1 | . . . . . . . . . . . . . . . . . . . 1 Robot Hacks Applied 68 | . . . . . . . 4 6 10 . 6 4 13 12 1 1 1 7 3 parse_system 2 | . . . . . . . . 1 . . . . . . 1 . . . . purge_threat 5 | . . . . . . . . 2 . . . . . 3 . . . . . ignore_targets 6 | . . . . . . . . . . . 6 . . . . . . . . overload_power 1 | . . . . . . . . . . . . 1 . . . . . . . amplify_resonance 1 | . . . . . . . . . . . . . 1 . . . . . . disable_weapons 3 | . . . . . . . . . . . . . 1 . . 1 1 . . reboot_system 4 | . . . . . . . . . 3 . . . . 1 . . . . . go_dormant 3 | . . . . . . . . . 2 . . . 1 . . . . . . overwrite_iff 18 | . . . . . . . . 1 4 . . 2 4 2 . . . 5 . formatsys_high 25 | . . . . . . . 4 2 1 . . 1 6 6 . . . 2 3 Relay Couplers Released 53 | . . . . . . . 11 . 12 . . . 12 . . . . 18 . Machine Destruction 53 | . . . . . . . 11 . 12 . . . 12 . . . . 18 . Attached 29 | . . . . . . . 3 2 5 1 . 1 5 7 . . . 4 1 Robots Rewired 29 | . . . . . . . . . 9 . . . . 20 . . . . . Allies Hacked 2 | . . . . . . . . . . . . . . . 2 . . . . Hacks Repelled . | . . . . . . . . . . . . . . . . . . . . Allies | -11 -10 -10 -10 -9 -8 -7 -7 -7 -7 -6 -6 -6 -6 -6 -6 -6 -6 -6 -5 -------- Run | Scr Mat Min Exi Min Mat Fac Gar Fac Gar Fac Was Fac Gar Ext Cet Arc Hub Gar Fac Total Allies 80 | . . . . . . . 4 3 14 . . 3 9 31 5 . . 7 4 Largest Group 18 | . . . . . . . 4 5 7 . . 2 4 18 17 10 8 8 7 Highest-Rated Group 718 | . . . . . . . 64 96 186 . . 32 92 660 718 718 552 531 348 Highest-Rated Ally 156 | . . . . . . . 16 32 38 . . 32 41 156 156 134 94 94 94 Total Orders 9 | . . . . . . . . . . . . . . 5 . . . 2 2 STAY 4 | . . . . . . . . . . . . . . 2 . . . 1 1 FOLLOW 5 | . . . . . . . . . . . . . . 3 . . . 1 1 Ally Attacks 643 | . . . . . . . . 54 75 . . 16 36 163 137 26 15 111 10 Total Damage 15497 | . . . . . . . . 835 1421 . . 266 1357 4003 2900 722 551 3237 205 Kills 101 | . . . . . . . . 8 11 . . 2 7 25 19 3 5 19 2 Allies Corrupted . | . . . . . . . . . . . . . . . . . . . . Allies Melted 1 | . . . . . . . . . 1 . . . . . . . . . . Intel | -11 -10 -10 -10 -9 -8 -7 -7 -7 -7 -6 -6 -6 -6 -6 -6 -6 -6 -6 -5 ------- Run | Scr Mat Min Exi Min Mat Fac Gar Fac Gar Fac Was Fac Gar Ext Cet Arc Hub Gar Fac Robot Analysis Total . | . . . . . . . . . . . . . . . . . . . . Derelict Logs Recovered 1 | . . 1 . . . . . . . . . . . . . . . . . Drone Launches . | . . . . . . . . . . . . . . . . . . . . Drone Recoveries . | . . . . . . . . . . . . . . . . . . . . Exploration | -11 -10 -10 -10 -9 -8 -7 -7 -7 -7 -6 -6 -6 -6 -6 -6 -6 -6 -6 -5 ------------- Run | Scr Mat Min Exi Min Mat Fac Gar Fac Gar Fac Was Fac Gar Ext Cet Arc Hub Gar Fac Turns Passed 12028 | 116 346 574 355 151 844 48 1499 424 1396 186 102 821 985 2018 455 122 54 1194 338 Spaces Moved 7135 | 50 291 537 315 112 421 30 624 188 621 167 81 653 555 1416 230 52 21 599 172 Core 3 | 3 . . . . . . . . . . . . . . . . . . . Treads 2117 | . . . . . . . 558 188 326 . . . . . 201 52 21 599 172 Legs 2 | . . . . . . . 2 . . . . . . . . . . . . Wheels 5013 | 47 291 537 315 112 421 30 64 . 295 167 81 653 555 1416 29 . . . . Hover . | . . . . . . . . . . . . . . . . . . . . Flight . | . . . . . . . . . . . . . . . . . . . . Fastest Speed 50 | 50 100 100 100 120 100 160 160 200 110 110 110 110 90 110 113 180 180 180 180 Average Speed 134 | 97 100 100 106 120 115 160 189 200 160 110 114 110 110 115 171 180 180 180 180 Slowest Speed 390 | 100 100 100 120 120 160 160 390 200 260 110 120 110 130 130 180 180 180 180 180 Overloaded Moves . | . . . . . . . . . . . . . . . . . . . . Propulsion Burnouts . | . . . . . . . . . . . . . . . . . . . . Robots Hopped . | . . . . . . . . . . . . . . . . . . . . Cave-ins Triggered 3 | . . . . . 2 . . 1 . . . . . . . . . . . Exploration Rate (%) 42 | 5 45 81 61 31 33 1 75 8 68 6 69 16 56 94 56 71 4 73 4 Regions Visited 19 Branch Regions 7 Pre-discovered Areas 1 | . . . 1 . . . . . . . . . . . . . . . . Known Exits Taken 5 | . . 1 . . . 1 . 1 . . . 1 . . . . 1 . . Unknown Exits Taken 8 | 1 1 . 1 1 1 . . . . . . . . 1 1 1 . . . Scrap Searched . | . . . . . . . . . . . . . . . . . . . . Spaces Dug 33 | . . . . . 13 . 3 . . . . 12 . 2 . . . . 3 Terrain Destroyed 166 | 3 . 6 5 12 91 . 7 . 6 . . 12 12 3 . 1 2 3 3 Melee 17 | . . . . . . . . . . . . 12 . 2 . . . . 3 Projectile 29 | . . . . . 8 . 7 . 1 . . . 6 1 . 1 2 3 . AOE 120 | 3 . 6 5 12 83 . . . 5 . . . 6 . . . . . . Actions | -11 -10 -10 -10 -9 -8 -7 -7 -7 -7 -6 -6 -6 -6 -6 -6 -6 -6 -6 -5 --------- Run | Scr Mat Min Exi Min Mat Fac Gar Fac Gar Fac Was Fac Gar Ext Cet Arc Hub Gar Fac Total 8920 | 90 330 564 336 120 696 30 842 217 884 170 87 732 837 1715 283 75 31 691 190 Wait 773 | 17 25 17 . . 202 . 93 2 51 . . 52 126 148 6 18 5 8 3 Move 7121 | 49 290 536 314 111 420 30 623 188 620 167 80 653 554 1415 229 51 21 598 172 Hop . | . . . . . . . . . . . . . . . . . . . . Pick Up 135 | 6 3 1 13 1 6 . 24 2 18 1 . 1 34 5 8 . . 12 . Fast Attach 42 | 6 1 . 1 . 10 . 10 . 4 . . . 1 3 2 . . 4 . Attach 50 | . . 1 2 . 9 . 3 2 7 2 1 2 11 7 1 . . 1 1 Detach 17 | . . . 2 . 1 . 4 . 5 . . . 1 2 1 . . 1 . Swap 94 | . . 1 . 1 4 . 3 3 17 . . 2 16 18 10 3 2 10 4 Drop 64 | . 2 . 4 . 1 . 2 1 17 . . . 3 5 16 . . 13 . Fire 448 | 12 9 8 . 7 42 . 55 19 92 . 6 9 71 73 10 3 3 25 4 Melee 66 | . . . . . . . . . 27 . . 12 3 20 . . . . 4 Ram 1 | . . . . . 1 . . . . . . . . . . . . . . Kick . | . . . . . . . . . . . . . . . . . . . . Crush . | . . . . . . . . . . . . . . . . . . . . Escape Stasis 101 | . . . . . . . 25 . 26 . . . 16 16 . . . 18 . Rewire 8 | . . . . . . . . . . . . 1 1 3 . . . 1 2 Trap . | . . . . . . . . . . . . . . . . . . . . Miscellaneous . | . . . . . . . . . . . . . . . . . . . . Route ------- -11/Scrapyard -10/Materials (discovered 2 exits: [*Mat] / [*Min]) -10/Mines (discovered 2 exits: [*Mat] / *Exi) -10/Exiles -9/Mines -8/Materials -7/Factory -7/Garrison (discovered 3 exits: *Fac x3) -7/Factory -7/Garrison (discovered 3 exits: *Fac x3) -6/Factory -6/Waste -6/Factory (discovered 3 exits: *Fac / *Ext / Gar) -6/Garrison (discovered 2 exits: *Ext x2) -6/Extension (discovered 2 exits: *Fac / *Cet) -6/Cetus (discovered 2 exits: *Fac / *Arc) -6/Archives -6/Hub_04(d) -6/Garrison (discovered 3 exits: *Fac x3) -5/Factory History --------- Turn | Location | Event 2 | -11/Scrapyard | Discovered new exit (range 16) 117 | -11/Scrapyard | Entered Materials 278 | -10/Materials | Discovered new exit (range 15) 308 | -10/Materials | Build established: Mutant 436 | -10/Materials | Discovered new exit (range 7) 463 | -10/Materials | Entered Mines 813 | -10/Mines | Discovered new exit (range 3) 932 | -10/Mines | Identified exit to Exiles 972 | -10/Mines | Received a Rocket Launcher from a helpful Derelict 1033 | -10/Mines | Deemed a non-threat by the Exiles lab entrance 1037 | -10/Mines | Entered Exiles 1062 | -10/Exiles | Met 8R-AWN 1078 | -10/Exiles | Met EX-HEX 1111 | -10/Exiles | Met EX-BIN 1123 | -10/Exiles | Aligned with FarCom system 1124 | -10/Exiles | Given EX-Vault access code 1153 | -10/Exiles | Opened EX-Vault 1159 | -10/Exiles | Found Field Lobotomy Kit 1181 | -10/Exiles | Warned to stay clear of 0b10 Research branches 1213 | -10/Exiles | Met EX-DEC 1219 | -10/Exiles | Learned location of Zion (-6) 1299 | -10/Exiles | Discovered new exit (range 11) 1392 | -10/Exiles | Left Exiles lab with Field Lobotomy Kit 1392 | -10/Exiles | Entered Mines 1500 | -9/Mines | Discovered new exit (range 12) 1537 | -9/Mines | Assembled infested the area 1542 | -9/Mines | Assisted by a Guerilla fighting off Assembled 1543 | -9/Mines | Entered Materials 1543 | -8/Materials | Evolved 4 slots: Propulsion x1, Utility x3 1586 | -8/Materials | Build established: Hauler-Mutant 1922 | -8/Materials | Crushed by falling debris 1922 | -8/Materials | System corruption reached 10% 1940 | -8/Materials | Crushed by falling debris 1982 | -8/Materials | Lost 9 parts (1p4n2u2w) 2222 | -8/Materials | Core integrity fell below 50% 2283 | -8/Materials | Lost 6 parts (1p2n1u2w) 2365 | -8/Materials | Discovered new exit (range 10) 2387 | -8/Materials | Entered Factory 2387 | -7/Factory | Evolved 2 slots: Utility x2 2435 | -7/Factory | Identified exit to Garrison 2435 | -7/Factory | Entered Garrison 2704 | -7/Garrison | Triggered checkpoint 2864 | -7/Garrison | Build established: Scavenger-Mutant 2872 | -7/Garrison | Triggered checkpoint 2946 | -7/Garrison | Discovered new exit (range 14) 3048 | -7/Garrison | Triggered checkpoint 3098 | -7/Garrison | Discovered new exit (range 14) 3134 | -7/Garrison | Installed Relay Interface Framework 3193 | -7/Garrison | Triggered checkpoint 3255 | -7/Garrison | Garrison Relay disabled 3456 | -7/Garrison | Triggered checkpoint 3481 | -7/Garrison | Garrison Relay disabled 3774 | -7/Garrison | Build established: Bothacker-Mutant 3814 | -7/Garrison | Triggered checkpoint 3843 | -7/Garrison | Garrison Relay disabled 3906 | -7/Garrison | Discovered new exit (range 14) 3934 | -7/Garrison | Entered Factory 3934 | -7/Factory | Accompanied by 4 allies 3975 | -7/Factory | Crushed by falling debris 4038 | -7/Factory | Garrison activated, responded to threat 4358 | -7/Factory | Identified exit to Garrison 4358 | -7/Factory | Entered Garrison 4438 | -7/Garrison | Triggered checkpoint 4448 | -7/Garrison | Garrison Relay disabled 4534 | -7/Garrison | Triggered checkpoint 4630 | -7/Garrison | Triggered checkpoint 5036 | -7/Garrison | Triggered checkpoint 5063 | -7/Garrison | Triggered checkpoint 5073 | -7/Garrison | Triggered checkpoint 5145 | -7/Garrison | Garrison Relay disabled 5220 | -7/Garrison | Discovered new exit (range 12) 5351 | -7/Garrison | Triggered checkpoint 5380 | -7/Garrison | Triggered checkpoint 5390 | -7/Garrison | Core integrity fell below 50% 5561 | -7/Garrison | Discovered new exit (range 10) 5602 | -7/Garrison | Triggered checkpoint 5644 | -7/Garrison | Garrison Relay disabled 5732 | -7/Garrison | Discovered new exit (range 11) 5750 | -7/Garrison | Expanded RIF knowledge: Robot Detection 5754 | -7/Garrison | Entered Factory 5754 | -6/Factory | Evolved 2 slots: Utility x2 5940 | -6/Factory | Sucked down chute 5940 | -6/Factory | Entered Waste 5946 | -6/Waste | Spotted C-40 Crusher 5968 | -6/Waste | Spotted C-40 Crusher 5971 | -6/Waste | Spotted C-40 Crusher 5973 | -6/Waste | Spotted C-40 Crusher 5978 | -6/Waste | Spotted C-40 Crusher 5991 | -6/Waste | Crushed by Compactor (1 part destroyed, 1 dropped) 6001 | -6/Waste | Spotted C-40 Crusher 6027 | -6/Waste | Discovered new exit (range 12) 6042 | -6/Waste | Entered Factory 6393 | -6/Factory | Discovered new exit (range 15) 6496 | -6/Factory | Discovered new exit (range 16) 6863 | -6/Factory | Identified exit to Garrison 6863 | -6/Factory | Entered Garrison 6896 | -6/Garrison | Triggered checkpoint 6936 | -6/Garrison | Garrison Relay disabled 7014 | -6/Garrison | Triggered checkpoint 7015 | -6/Garrison | Triggered checkpoint 7085 | -6/Garrison | Lost 5 parts (1p2n1u1w) 7173 | -6/Garrison | Triggered checkpoint 7203 | -6/Garrison | Discovered new exit (range 15) 7226 | -6/Garrison | Expanded RIF knowledge: Patrol Navigation 7339 | -6/Garrison | Triggered checkpoint 7424 | -6/Garrison | Triggered checkpoint 7444 | -6/Garrison | Discovered new exit (range 11) 7472 | -6/Garrison | Triggered checkpoint 7561 | -6/Garrison | Garrison Relay disabled 7795 | -6/Garrison | Garrison Relay disabled 7848 | -6/Garrison | Entered Extension 8561 | -6/Extension | Rescued a captive Derelict 8573 | -6/Extension | Rescued a captive Derelict 8659 | -6/Extension | Spotted B-75 Beast 8673 | -6/Extension | Spotted B-75 Beast 8686 | -6/Extension | Allies destroyed B-75 Beast 8691 | -6/Extension | Allies destroyed B-75 Beast 9619 | -6/Extension | Rescued A7 9809 | -6/Extension | Discovered new exit (range 15) 9810 | -6/Extension | Discovered new exit (range 15) 9866 | -6/Extension | Entered Cetus 9866 | -6/Cetus | Accompanied by 17 allies 9871 | -6/Cetus | Acquired a Cetus Manufacturing Module code from A7 9881 | -6/Cetus | Spotted Cetus Guard 9881 | -6/Cetus | Spotted Cetus Guard 9883 | -6/Cetus | Spotted Cetus Guard 9883 | -6/Cetus | Spotted Cetus Guard 9894 | -6/Cetus | Allies destroyed Cetus Guard 9896 | -6/Cetus | Allies destroyed Cetus Guard 9899 | -6/Cetus | Allies destroyed Cetus Guard 9908 | -6/Cetus | Allies destroyed Cetus Guard 10055 | -6/Cetus | Started Cetus Manufacturing Module 10077 | -6/Cetus | Discovered new exit (range 16) 10080 | -6/Cetus | Manufactured an Enhanced Grunt 10093 | -6/Cetus | Spotted Cetus Guard 10095 | -6/Cetus | Destroyed Cetus Guard 10098 | -6/Cetus | Spotted Cetus Guard 10098 | -6/Cetus | Spotted Cetus Guard 10098 | -6/Cetus | Spotted Cetus Guard 10105 | -6/Cetus | Manufactured an Enhanced Grunt 10112 | -6/Cetus | Allies destroyed Cetus Guard 10113 | -6/Cetus | Destroyed Cetus Guard 10120 | -6/Cetus | Allies destroyed Cetus Guard 10130 | -6/Cetus | Manufactured an Enhanced Grunt 10155 | -6/Cetus | Manufactured an Enhanced Grunt 10155 | -6/Cetus | Discovered new exit (range 15) 10180 | -6/Cetus | Manufactured an Enhanced Grunt 10208 | -6/Cetus | Met Revision 17 10321 | -6/Cetus | Entered Archives 10321 | -6/Archives | Accompanied by 10 allies 10386 | -6/Archives | Unable to access archive contents 10398 | -6/Archives | Discovered new exit (range 14) 10443 | -6/Archives | Entered Hub_04(d) 10443 | -6/Hub_04(d) | Accompanied by 8 allies 10497 | -6/Hub_04(d) | Identified exit to Garrison 10497 | -6/Hub_04(d) | Entered Garrison 10497 | -6/Garrison | Accompanied by 6 allies 10566 | -6/Garrison | Triggered checkpoint 10582 | -6/Garrison | Triggered checkpoint 10588 | -6/Garrison | Triggered checkpoint 10712 | -6/Garrison | Triggered checkpoint 10749 | -6/Garrison | Garrison Relay disabled 10934 | -6/Garrison | Triggered checkpoint 10952 | -6/Garrison | Garrison Relay disabled 11005 | -6/Garrison | Discovered new exit (range 14) 11106 | -6/Garrison | Triggered checkpoint 11197 | -6/Garrison | Discovered new exit (range 13) 11344 | -6/Garrison | Triggered checkpoint 11432 | -6/Garrison | Garrison Relay disabled 11582 | -6/Garrison | Triggered checkpoint 11606 | -6/Garrison | Garrison Relay disabled 11659 | -6/Garrison | Discovered new exit (range 10) 11684 | -6/Garrison | Expanded RIF knowledge: Autoassimilate 11691 | -6/Garrison | Entered Factory 11691 | -5/Factory | Accompanied by 4 allies 11691 | -5/Factory | Evolved 2 slots: Utility x2 11990 | -5/Factory | Build established: Botlord-Mutant 11991 | -5/Factory | First assault squad dispatched 12029 | -5/Factory | Self-destructed Last Messages --------------- 11965_ Sneak attack on U-05 Engineer. 11965_ Destroyed Unknown Device. 11965_ Destroyed Welding Torch. 11965_ Destroyed Wheel. 11971_ Enhanced Grunt triggered Proton Bomb Trap. 11971_ A bubble of electromagnetic force engulfs the area. 11971_ Enhanced Grunt destroyed. 11971_ U-05 Engineer destroyed. 11971_ Chain reaction triggered in Lgt. Ion Engine. 11971_ Proton Bomb Trap short circuited. 11971_ A bubble of electromagnetic force engulfs the area. 11991_ ALERT: Significant disruption in Zone 8Z, assault force dispatched. 12026_ C-30 ARC bursts open, deploying its payload. 12026_ G-50 Soldier unfolds itself. 12026_ B-60 Warrior unfolds itself. 12026_ E-15 Imp unfolds itself. 12027_ G-67 Veteran destroyed. 12029_ Lgt. Nuclear Core blown off. 12029_ Autogun blown off. 12029_ E-15 Imp destroyed. Map ----- +----------------------------------------------------+ | ?????????????????????????????????????????????????? | | ?????????????????????????????????????????????????? | | ?????????????????????????????????????????????????? | | ?????????????????????????????????????????????????? | | ?????????????????????????????????????????????????? | | ?????????????????????????????????????????????????? | | ?????????????????????????????????????????????????? | | ?????????????????????????????????????????????????? | | ?????????????????????????????????????????????????? | | ?????????????????????????????????????????????????? | | ?????????????????h???????????????????????????????? | | ??????????????? ?????????????????????????????? | | ??????????????# #????????????????????????????? | | ??????????????# #????????????????????????????? | | ??????????????# h#???????????#????????????????? | | ??????????????# #??????????d#####+###????????? | | ??????????????# #??????????%! ##???????? | | ??????????????# ###########g%= ???????? | | ??????????????# g ??????? | | ??????????????# b ??????? | | ??????????????# l ?????? | | ??????????????# s ?????? | | ############### = ?????? | | A =% gg ?????? | | s[ ######## ?????? | | s@ # """ #????????????? | | ! + """ #????????????? | | !!%] ######## # """ #????????????? | | ##/########;####+########??# # #????????????? | | #%* #??# #? #????????????? | | """" """" """" # #??# #?] ! #????????????? | | """" """" """" # #??# #??#####????????????? | | """" """" """" # #??# ???????????????????? | | """" """" """" # "" #???##???????????????????? | | """" """" """" # """#????????????????????????? | | """" """" """" # R"#????????????????????????? | | ?""" """" ""?" # """?????????????????????????? | | ??? ?? ??? # ?????????????????????????? | | ???###??###???#?#########????????????????????????? | | | | | | | | | | | | | | | | | | | | | | | +----------------------------------------------------+ Best States ------------- Heat Dissipation 41 Energy Generation 25 Energy Capacity 350 Matter Stores 300 Matter Capacity 300 Sight Range 20 Terrain Scan Density 10 Armor Coverage 825 Utility Shielding 33 Evasion (%) 40 Targeting Accuracy 5 Core Analysis 6 Armor Integrity Analysis 33 Recoil Reduction 3 Item Schematics ----------------- Humpback | -6/Factory | Scanalyzed Robot Schematics ------------------ None Fabricated ------------ Nothing Alien Tech Used ----------------- None Achievements -------------- None Challenges ------------ None Game ------ Seed SurveybotAerolevGravjet Manual? 0 Play Time 01:57:06 Cumulative 95.8 hours Start 2020.08.10 @ 21:12:28 End 2020.08.12 @ 15:11:45 Sessions 3 Manual Loads 0 Difficulty Rogue Special Mode None Game No. 103 Rogue 16 Adventurer 87 Explorer 0 Win Type - Total 3 Types 2/0/0/1/0/0/0 Lore% 47 Gallery% 62 Achievement% 53 Wizard Run 0 Options --------- ASCII 0 Keyboard 1 Movement Numpad Keybinds 0 Fullscreen 1 Font 18/Smallcaps Map View 76x50 Tactical HUD 1 Map Filters NONE Filters NONE Steam 1 RUN: 24d20518-c0be-418c-99c6-7b037faca63a